Workbook

Sheet примерное меню для 1-4 классов
B2: Примерное двухнедельное меню для обучающихся в общеобразовательных организациях с 1-4 классы (Горячий завтрак)
A3: Номер рецептуры | B3: Прием пищи | C3: Наименование блюда | D3: Выход,г | E3: Белки,г | F3: Жиры,г | G3: Углеводы,г | H3: Калорийность,ккал | I3: Витамин В1,мг | J3: Витамин С,мг | K3: Витамин А,мг | L3: Витамин Е,мг | M3: Са,мг | N3: Р,мг | O3: Mg,мг | P3: Fe,мг
B4: 1 | C4: 2 | D4: 3 | E4: 4 | F4: 5 | G4: 6 | H4: 7 | I4: 8 | J4: 9 | K4: 10 | L4: 11 | M4: 12 | N4: 13 | O4: 14 | P4: 15
A5: 71/2015,дели | B5: 1-ая неделя | C5: Помидоры свежие | D5: 60 | E5: 0.66 | F5: 0.12 | G5: 2.28 | H5: 14.00 | I5: 0.04 | J5: 15.00 | K5: 0 | L5: 0.42 | M5: 8.4 | N5: 15.6 | O5: 12 | P5: 0.54
A6: ттк | B6: 1 день | C6: Котлеты (биточки,шницели рубленные из говядины) | D6: 80 | E6: 8.2 | F6: 9.9 | G6: 10.21 | H6: 151 | I6: 0.05 | J6: 0.05 | K6: 2.08 | L6: 2.51 | M6: 27.8 | N6: 112.1 | O6: 22.1 | P6: 1.15
A7: 508/2004,сб шк | C7: Каша гречневая рассыпчатая с маслом | D7: 150/5 | E7: 3.6 | F7: 7 | G7: 29 | H7: 193 | I7: 0.292 | J7: 0 | K7: 41 | L7: 0.518 | M7: 27.352 | N7: 180.553 | O7: 104.55 | P7: 3.501
A8: 693/2004,сб шк | C8: Какао с молоком | D8: 200 | E8: 3.78 | F8: 0.67 | G8: 21 | H8: 105 | I8: 0.2 | J8: 1.33 | K8: 0 | L8: 0 | M8: 133.33 | N8: 111.11 | O8: 25.56 | P8: 2
C9: Хлеб сельский 1 сорт | D9: 20 | E9: 1.3 | F9: 0.2 | G9: 7 | H9: 35 | I9: 0.02 | J9: 0 | K9: 0 | L9: 0.2 | M9: 4.7 | N9: 21.1 | O9: 6.3 | P9: 0.52
C10: Хлеб белый 1 сорт | D10: 30 | E10: 2.28 | F10: 0.24 | G10: 14.76 | H10: 71 | I10: 0.033 | J10: 0 | K10: 0 | L10: 0.33 | M10: 6 | N10: 19.5 | O10: 4.2 | P10: 0.33
C11: итого: | E11: =E5+E6+E7+E8+E9+E10 -> 19.82 | F11: =F5+F6+F7+F8+F9+F10 -> 18.13 | G11: 84.25 | H11: 569.00 | I11: 0.63 | J11: 16.38 | K11: 43.08 | L11: 3.98 | M11: 207.58 | N11: 459.96 | O11: 174.71 | P11: 8.04
A13: 338/2015 дели | B13: 2 день | C13: Фрукты(яблоки) | D13: 110 | E13: 0.33 | F13: 0.44 | G13: 9.46 | H13: 44 | I13: 0.033 | J13: 11 | K13: 0 | L13: 0.22 | M13: 17.6 | N13: 12.1 | O13: 9.9 | P13: 2.42
A14: 71/2015 дели | C14: Огурцы свежие(порциями) | D14: 60 | E14: 0.42 | F14: 0.06 | G14: 1.14 | H14: 7 | I14: 0.018 | J14: 4.2 | K14: 0 | L14: 0.06 | M14: 10.2 | N14: 18 | O14: 8.4 | P14: 0.3
A15: ттк,2019 | C15: Жаркое из птицы | D15: 50/150 | E15: 13.3 | F15: 17 | G15: 28.45 | H15: 320 | I15: 0.222 | J15: 27.825 | K15: 28.5 | L15: 2.174 | M15: 35.535 | N15: 197.84 | O15: 47.778 | P15: 2.26
A16: 692/2004 | C16: Кофейный напиток с молоком | D16: 200 | E16: 2.5 | F16: 1.8 | G16: 20.5 | H16: 108 | I16: 0 | J16: 0.26 | K16: 0.05 | L16: 0 | M16: 53.33 | N16: 39.15 | O16: 6.09 | P16: 0.1
C17: Хлеб сельский 1 сорт | D17: 20 | E17: 1.3 | F17: 0.2 | G17: 7 | H17: 35 | I17: 0.02 | J17: 0 | K17: 0 | L17: 0.2 | M17: 4.7 | N17: 21.1 | O17: 6.3 | P17: 0.52
C18: Хлеб белый 1 сорт | D18: 30 | E18: 2.28 | F18: 0.24 | G18: 14.76 | H18: 71 | I18: 0.033 | J18: 0 | K18: 0 | L18: 0.33 | M18: 6 | N18: 19.5 | O18: 4.2 | P18: 0.33
C19: итого: | E19: =E13+E14+E15+E16+E17+E18 -> 20.13 | F19: =F13+F14+F15+F16+F17+F18 -> 19.74 | G19: 81.31 | H19: 585 | I19: 0.326 | J19: 43.285 | K19: 28.55 | L19: 2.984 | M19: 127.365 | N19: 307.69 | O19: 82.668 | P19: 5.93
A21: 43/2004 сб шк | B21: 3 день | C21: Салат из белокочанной капусты | D21: 60 | E21: 0.933 | F21: 3.051 | G21: 5.641 | H21: 54 | I21: 0.018 | J21: 21.684 | K21: 0 | L21: 1.392 | M21: 25.624 | N21: 18.316 | O21: 9.949 | P21: 0.345
A22: 437/2004 сбшк | C22: Гуляш из говядины | D22: 50/50 | E22: 9.1 | F22: 12.4 | G22: 10.5 | H22: 190 | I22: 0.03 | J22: 2.44 | K22: 0 | L22: 0.41 | M22: 7.6 | N22: 128.9 | O22: 17.5 | P22: 1.9
A23: 332/сб шк | C23: Макароны отварные | D23: 150 | E23: 5.652 | F23: 4.469 | G23: 28.00 | H23: 175.00 | I23: 0.087 | J23: 0 | K23: 21.00 | L23: 0.818 | M23: 16.47 | N23: 47.07 | O23: 8.49 | P23: 0.87
A24: 685/2004сбшк | C24: Чай с сахаром | D24: 200/15 | E24: 0.2 | G24: 13.7 | H24: 56 | I24: 0.008 | J24: 3.75 | K24: 0 | L24: 0.075 | M24: 9.97 | N24: 7.5 | O24: 6.5 | P24: 0.197
C25: Хлеб сельский 1 сорт | D25: 20 | E25: 1.3 | F25: 0.2 | G25: 7 | H25: 35 | I25: 0.02 | J25: 0 | K25: 0 | L25: 0.2 | M25: 4.7 | N25: 21.1 | O25: 6.3 | P25: 0.52
C26: Хлеб белый 1 сорт | D26: 30 | E26: 2.28 | F26: 0.24 | G26: 14.76 | H26: 71 | I26: 0.033 | J26: 0 | K26: 0 | L26: 0.33 | M26: 6 | N26: 19.5 | O26: 4.2 | P26: 0.33
C27: итого: | E27: =E21+E22+E23+E24+E25+E26 -> 19.47 | F27: =F21+F22+F23+F24+F25+F26 -> 20.36 | G27: 79.60 | H27: 581.00 | I27: 0.20 | J27: 27.87 | K27: 21.00 | L27: 3.23 | M27: 70.36 | N27: 242.39 | O27: 52.94 | P27: 4.16
A29: ттк | B29: 4 день | C29: Салат из моркови | D29: 60 | E29: 0.632 | F29: 6.043 | G29: 4.341 | H29: 74 | I29: 0.029 | J29: 2.43 | K29: 0 | L29: 2.834 | M29: 13.302 | N29: 26.85 | O29: 18.468 | P29: 0.358
A30: 234/2015 дели | C30: Котлеты рыбные | D30: 80 | E30: 8.2 | F30: 8.1 | G30: 7 | H30: 134 | I30: 0.08 | J30: 0.128 | K30: 8 | L30: 4 | M30: 33.28 | N30: 120.096 | O30: 22.64 | P30: 0.896
A31: 520/сб шк | C31: Пюре картофельное | D31: 150 | E31: 3.282 | F31: 4.657 | G31: 22.027 | H31: 143 | I31: 0.163 | J31: 25.943 | K31: 25.5 | L31: 0.181 | M31: 46.606 | N31: 97.336 | O31: 32.978 | P31: 1.231
A32: 693/2004 сб шк | C32: Какао с молоком | D32: 200 | E32: 3.78 | F32: 0.67 | G32: 21 | H32: 105 | I32: 0.2 | J32: 1.33 | K32: 0 | L32: 0 | M32: 133.33 | N32: 111.11 | O32: 25.56 | P32: 2
C33: Хлеб сельский 1 сорт | D33: 20 | E33: 1.3 | F33: 0.2 | G33: 7 | H33: 35 | I33: 0.02 | J33: 0 | K33: 0 | L33: 0.2 | M33: 4.7 | N33: 21.1 | O33: 6.3 | P33: 0.52
C34: Хлеб белый 1 сорт | D34: 30 | E34: 2.28 | F34: 0.24 | G34: 14.76 | H34: 71 | I34: 0.033 | J34: 0 | K34: 0 | L34: 0.33 | M34: 6 | N34: 19.5 | O34: 4.2 | P34: 0.33
C35: итого: | E35: =E29+E30+E31+E32+E33+E34 -> 19.47 | F35: =F29+F30+F31+F32+F33+F34 -> 19.91 | G35: 76.13 | H35: 562.00 | I35: 0.53 | J35: 29.83 | K35: 33.50 | L35: 7.55 | M35: 237.22 | N35: 395.99 | O35: 110.15 | P35: 5.34
A37: 338/2015 дели | B37: 5 день | C37: Фрукты (мандарин) | D37: 100 | E37: 0.5 | F37: 0.2 | G37: 7.5 | H37: 34 | I37: 0.03 | J37: 10 | K37: 0 | L37: 0.2 | M37: 16 | N37: 11 | O37: 9 | P37: 2.2
A38: 71/2015 дели | C38: Помидоры свежие(порциями) | D38: 60 | E38: 0.66 | F38: 0.12 | G38: 2.28 | H38: 14 | I38: 0.036 | J38: 15 | K38: 0 | L38: 0.42 | M38: 8.4 | N38: 15.6 | O38: 12 | P38: 0.54
A39: ттк | C39: Котлеты рубленные из птицы | D39: 80 | E39: 11 | F39: 13.5 | G39: 4.786 | H39: 185 | I39: 0.089 | J39: 1.888 | K39: 37.781 | L39: 4.426 | M39: 19.564 | N39: 154.618 | O39: 18.693 | P39: 1.304
A40: 511/2004 сб шк | C40: Рис отварной | D40: 150 | E40: 3.67 | F40: 4.9 | G40: 28.3 | H40: 172 | I40: 0.045 | J40: 0 | K40: 39.9 | L40: 0.27 | M40: 4.95 | N40: 82.35 | O40: 27 | P40: 0.54
A41: 686/2004 сб шк | C41: Чай с сахароми лимоним | D41: 200/15/7 | E41: 0.2 | F41: 0.1 | G41: 13.9 | H41: 57 | I41: 0 | J41: 1.12 | K41: 0 | L41: 0.01 | M41: 2.86 | N41: 1.34 | O41: 0.73 | P41: 0.08
C42: Хлеб сельский 1 сорт | D42: 20 | E42: 1.3 | F42: 0.2 | G42: 7 | H42: 35 | I42: 0.02 | J42: 0 | K42: 0 | L42: 0.2 | M42: 4.7 | N42: 21.1 | O42: 6.3 | P42: 0.52
C43: хлеб белый 1 сорт | D43: 30 | E43: 2.28 | F43: 0.24 | G43: 14.76 | H43: 71 | I43: 0.033 | J43: 0 | K43: 0 | L43: 0.33 | M43: 6 | N43: 19.5 | O43: 4.2 | P43: 0.33
C44: итого: | E44: =E37+E38+E39+E40+E41+E42+E43 -> 19.61 | F44: =F37+F38+F39+F40+F41+F42+F43 -> 19.26 | G44: 78.53 | H44: 568.00 | I44: 0.25 | J44: 28.01 | K44: 77.68 | L44: 5.86 | M44: 62.47 | N44: 305.51 | O44: 77.92 | P44: 5.51
A46: 20/2015 дели | B46: 6 день | C46: Салат из свежих огурцов с маслом | D46: 60 | E46: 0.576 | F46: 3.684 | G46: 1.848 | H46: 43 | I46: 0.024 | J46: 11.46 | K46: 0 | L46: 2.695 | M46: 16.062 | N46: 18.252 | O46: 9.996 | P46: 0.456
A47: 243/2015дели | C47: Сосиски отварные | D47: 100 | E47: 12.0 | F47: 7.6 | G47: 16 | H47: 180 | I47: 0.3 | J47: 0 | K47: 0 | L47: 0.5 | M47: 33.4 | N47: 182.8 | O47: 19.78 | P47: 2.4
A48: 332/сб шк | C48: Макароны отварные | D48: 150 | E48: 5.652 | F48: 4.469 | G48: 28.00 | H48: 175.00 | I48: 0.087 | J48: 0 | K48: 21.00 | L48: 0.818 | M48: 16.47 | N48: 47.07 | O48: 8.49 | P48: 0.87
A49: 685/2004 сб шк | C49: Чай с сахаром | D49: 200/15 | E49: 0.2 | F49: 0 | G49: 13.7 | H49: 56 | I49: 0.008 | J49: 3.75 | K49: 0 | L49: 0.075 | M49: 9.97 | N49: 7.5 | O49: 6.5 | P49: 0.197
C50: Хлеб сельский 1 сорт | D50: 20 | E50: 1.3 | F50: 0.2 | G50: 7 | H50: 35 | I50: 0.2 | J50: 0 | K50: 0 | L50: 0.2 | M50: 4.7 | N50: 21.1 | O50: 6.3 | P50: 0.52
C51: Хлеб белый 1 сорт | D51: 30 | E51: 2.28 | F51: 0.24 | G51: 14.76 | H51: 71 | I51: 0.033 | J51: 0 | K51: 0 | L51: 0.33 | M51: 6 | N51: 19.5 | O51: 4.2 | P51: 0.33
C52: Итого: | E52: =E46+E47+E48+E49+E50+E51 -> 22.01 | F52: =F46+F47+F48+F49+F50+F51 -> 16.19 | G52: 81.31 | H52: 560.00 | I52: 0.65 | J52: 15.21 | K52: 21.00 | L52: 4.62 | M52: 86.60 | N52: 296.22 | O52: 55.27 | P52: 4.77
B54: Примерное двухнедельное меню для обучающихся в общеобразовательных организациях с 1-4 классы (Горячий завтрак)
A56: Номер рецептуры | B56: Прием пищи | C56: Наименование блюда | D56: Выход,г | E56: Белки,г | F56: Жиры,г | G56: Углеводы,г | H56: Калорийность,ккал | I56: Витамин В1,мг | J56: Витамин С,мг | K56: Витамин А,мг | L56: Витамин Е,мг | M56: Са,мг | N56: Р,мг | O56: Mg,мг | P56: Fe,мг
A57: 338/2015дели | B57: 2 неделя | C57: Фрукты(апельсин) | D57: 150 | E57: 1.35 | F57: 0.3 | G57: 12.15 | H57: 57 | I57: 0.06 | J57: 90 | K57: 0 | L57: 0.3 | M57: 51 | N57: 34.5 | O57: 19.5 | P57: 0.45
A58: 71/2015 дели | B58: 1 день | C58: Огурцы свежие(порциями) | D58: 60 | E58: 0.42 | F58: 0.06 | G58: 1.14 | H58: 7 | I58: 0.018 | J58: 4.2 | K58: 0 | L58: 0.06 | M58: 10.2 | N58: 18 | O58: 8.4 | P58: 0.3
A59: 433/204 сб шк | C59: Говядина тушеная | D59: 60/30 | E59: 7.2 | F59: 11.8 | G59: 1.925 | H59: 143 | I59: 0.068 | J59: 1.155 | K59: 0 | L59: 3.62 | M59: 12.989 | N59: 192.851 | O59: 24.257 | P59: 2.801
A60: 508/2004 сб шк | C60: Каша гречневая рассыпчатая | D60: 150 | E60: 3.6 | F60: 7 | G60: 29 | H60: 193 | I60: 0.291 | J60: 0 | K60: 21 | L60: 0.468 | M60: 20.632 | N60: 177.928 | O60: 104.22 | P60: 3.448
A61: 693/2004 сб шк | C61: Какао с молоком | D61: 200 | E61: 3.78 | F61: 0.67 | G61: 21 | H61: 105 | I61: 0.2 | J61: 1.33 | K61: 0 | L61: 0 | M61: 133.33 | N61: 111.11 | O61: 25.56 | P61: 2 | Q61: 2
C62: Хлеб белый 1 сорт | D62: 30 | E62: 2.28 | F62: 0.24 | G62: 14.76 | H62: 71 | I62: 0.033 | J62: 0 | K62: 0 | L62: 0.33 | M62: 6 | N62: 19.5 | O62: 4.2 | P62: 0.33
C63: Хлеб сельский 1 сорт | D63: 20 | E63: 1.3 | F63: 0.2 | G63: 7 | H63: 35 | I63: 0.02 | J63: 0 | K63: 0 | L63: 0.2 | M63: 4.7 | N63: 21.1 | O63: 6.3 | P63: 0.52
C64: итого: | E64: =E57+E58+E59+E60+E61+E62+E63 -> 19.93 | F64: =F57+F58+F59+F60+F61+F62+F63 -> 20.27 | G64: 86.98 | H64: 611.00 | I64: 0.69 | J64: 96.69 | K64: 21.00 | L64: 4.98 | M64: 238.85 | N64: 574.99 | O64: 192.44 | P64: 9.85
A66: 71/2015дели | B66: 2 день | C66: Помидоры свежие(порциями) | D66: 60 | E66: 0.66 | F66: 0.12 | G66: 2.28 | H66: 14 | I66: 0.036 | J66: 15 | K66: 0 | L66: 0.42 | M66: 8.4 | N66: 15.6 | O66: 12 | P66: 0.54
A67: 291/2015 дели | C67: Плов с курицей | D67: 50/150 | E67: 14 | F67: 19.5 | G67: 42 | H67: 400 | I67: 0.064 | J67: 0.62 | K67: 34.27 | L67: 5.799 | M67: 22 | N67: 204 | O67: 40.6 | P67: 1.87
A68: 686/2004 сб шк | C68: Чай с сахаром и лимоном | D68: 200/15/7 | E68: 0.2 | F68: 0.1 | G68: 13.9 | H68: 57 | I68: 0 | J68: 1.12 | K68: 0 | L68: 0.01 | M68: 2.86 | N68: 1.34 | O68: 0.73 | P68: 0.08
C69: Хлеб белый 1 сорт | D69: 30 | E69: 2.28 | F69: 0.24 | G69: 14.76 | H69: 71 | I69: 0.033 | J69: 0 | K69: 0 | L69: 0.33 | M69: 6 | N69: 19.5 | O69: 4.2 | P69: 0.33
C70: Хлеб сельский 1 сорт | D70: 20 | E70: 1.3 | F70: 0.2 | G70: 7 | H70: 35 | I70: 0.02 | J70: 0 | K70: 0 | L70: 0.2 | M70: 4.7 | N70: 21.1 | O70: 6.3 | P70: 0.52
C71: итого: | E71: =E66+E67+E68+E69+E70 -> 18.44 | F71: =F66+F67+F68+F69+F70 -> 20.16 | G71: 79.94 | H71: 577 | I71: 0.153 | J71: 16.74 | K71: 34.27 | L71: 6.759 | M71: 43.96 | N71: 261.54 | O71: 63.83 | P71: 3.34
A73: 338/2015 дели | B73: 3 день | C73: Фрукты(яблоки) | D73: 100 | E73: 0.3 | F73: 0.4 | G73: 8.1 | H73: 40 | I73: 0.03 | J73: 10 | K73: 0 | L73: 0.02 | M73: 16 | N73: 11 | O73: 9 | P73: 2.2
A74: 43/2004 сб шк | C74: Салат из белокочанной капусты | D74: 60 | E74: 0.933 | F74: 3.051 | G74: 5.641 | H74: 54 | I74: 0.018 | J74: 21.684 | K74: 0 | L74: 1.392 | M74: 25.624 | N74: 18.316 | O74: 9.949 | P74: 0.345
A75: 234/2015дели | C75: Котлеты рыбные | D75: 80 | E75: 10.8 | F75: 11.8 | G75: 6.5 | H75: 175 | I75: 0.08 | J75: 0.128 | K75: 8 | L75: 4 | M75: 33.28 | N75: 120.096 | O75: 22.64 | P75: 0.896
A76: 312/2015дели | C76: Пюре картофельное | D76: 150 | E76: 3.282 | F76: 4.657 | G76: 22.027 | H76: 143 | I76: 0.163 | J76: 25.943 | K76: 25.5 | L76: 0.181 | M76: 46.606 | N76: 97.336 | O76: 32.978 | P76: 1.231
A77: 685/2004 сб шк | C77: Чай с сахаром | D77: 200/15 | E77: 0.5 | F77: 0 | G77: 13.7 | H77: 56 | I77: 0.008 | J77: 3.75 | K77: 0 | L77: 0.075 | M77: 9.97 | N77: 7.5 | O77: 6.5 | P77: 0.197
C78: Хлеб белый 1 сорт | D78: 30 | E78: 2.28 | F78: 0.24 | G78: 14.76 | H78: 71 | I78: 0.033 | J78: 0 | K78: 0 | L78: 0.33 | M78: 6 | N78: 19.5 | O78: 4.2 | P78: 0.33
C79: Хлеб сельский 1 сорт | D79: 20 | E79: 1.3 | F79: 0.2 | G79: 7 | H79: 35 | I79: 0.02 | J79: 0 | K79: 0 | L79: 0.2 | M79: 4.7 | N79: 21.1 | O79: 6.3 | P79: 0.52
C80: Итого: | E80: =E73+E74+E75+E76+E77+E78+E79 -> 19.40 | F80: =F73+F74+F75+F76+F77+F78+F79 -> 20.35 | G80: 77.73 | H80: 574.00 | I80: 0.35 | J80: 61.51 | K80: 33.50 | L80: 6.20 | M80: 142.18 | N80: 294.85 | O80: 91.57 | P80: 5.72
A82: ттк/2012 | B82: 4 день | C82: Салат из моркови | D82: 60 | E82: 0.632 | F82: 6.043 | G82: 4.3 | H82: 74 | I82: 0.029 | J82: 2.43 | K82: 0 | L82: 2.834 | M82: 13.302 | N82: 26.85 | O82: 18.468 | P82: 0.358
A83: ттк/2019 | C83: Птица запеченая | D83: 120 | E83: 6.7 | F83: 7.1 | G83: 4 | H83: 107 | I83: 0.113 | J83: 3.75 | K83: 48 | L83: 0.83 | M83: 21.08 | N83: 194.81 | O83: 24.52 | P83: 1.658
A84: 202/2015дели | C84: Макароны отварные | D84: 150 | E84: 5.652 | F84: 4.469 | G84: 28 | H84: 175 | I84: 0.087 | J84: 0 | K84: 21 | L84: 0.818 | M84: 16.47 | N84: 47.07 | O84: 8.49 | P84: 0.87
A85: 692/2004 | C85: Кофейный напиток с молоком | D85: 200 | E85: 2.5 | F85: 1.8 | G85: 20.5 | H85: 108 | I85: 0 | J85: 0.26 | K85: 0.05 | L85: 0 | M85: 53.33 | N85: 39.15 | O85: 6.09 | P85: 0.1
C86: Хлеб белый 1 сорт | D86: 30 | E86: 2.28 | F86: 0.24 | G86: 14.76 | H86: 71 | I86: 0.033 | J86: 0 | K86: 0 | L86: 0.33 | M86: 6 | N86: 19.5 | O86: 4.2 | P86: 0.33
C87: Хлеб сельский 1 сорт | D87: 20 | E87: 1.3 | F87: 0.2 | G87: 7 | H87: 35 | I87: 0.02 | J87: 0 | K87: 0 | L87: 0.20 | M87: 4.7 | N87: 21.1 | O87: 6.3 | P87: 0.52
C88: итого: | E88: =E82+E83+E84+E85+E86+E87 -> 19.06 | F88: =F82+F83+F84+F85+F86+F87 -> 19.85 | G88: 78.56 | H88: 570.00 | I88: 0.28 | J88: 6.44 | K88: 69.05 | L88: 5.01 | M88: 114.88 | N88: 348.48 | O88: 68.07 | P88: 3.84
A90: таб 24/1996сб | B90: 5 день | C90: Свекла отварная(дольками)с маслом | D90: 60 | E90: 0.819 | F90: 6.049 | G90: 4.807 | H90: 77 | I90: 0.011 | J90: 5.462 | K90: 0 | L90: 2.695 | M90: 20.209 | N90: 23.607 | O90: 12.016 | P90: 0.765
A91: 478/2004сб шк | C91: Запеканка картофельная с мясом и маслом | D91: 180/5 | E91: 12.6 | F91: 13 | G91: 9.2 | H91: 204 | I91: 0.213 | J91: 35.556 | K91: 20 | L91: 5.026 | M91: 27.951 | N91: 109.806 | O91: 41.551 | P91: 1.7
A92: 686/2204 сб шк | C92: Чай с сахаром и лимоном | D92: 200/15/7 | E92: 0.2 | F92: 0.1 | G92: 13.9 | H92: 57 | I92: 0 | J92: 1.12 | K92: 0 | L92: 0.01 | M92: 2.86 | N92: 1.34 | O92: 0.73 | P92: 0.08
C93: Хлеб белый 1 сорт | D93: 30 | E93: 2.3 | F93: 0.24 | G93: 14.76 | H93: 71 | I93: 0.033 | J93: 0 | K93: 0 | L93: 0.33 | M93: 6 | N93: 19.5 | O93: 4.2 | P93: 0.33
C94: Хлеб сельский 1 сорт | D94: 20 | E94: 1.3 | F94: 0.2 | G94: 7 | H94: 35 | I94: 0.02 | J94: 0 | K94: 0 | L94: 0.2 | M94: 4.7 | N94: 21.1 | O94: 6.3 | P94: 0.52
C95: итого: | E95: =E90+E91+E92+E93+E94 -> 17.20 | F95: =F90+F91+F92+F93+F94 -> 19.59 | G95: 49.67 | H95: 444.00 | I95: 0.28 | J95: 42.14 | K95: 20.00 | L95: 8.26 | M95: 61.72 | N95: 175.35 | O95: 64.80 | P95: 3.40
A97: 20/2015 | B97: 6 день | C97: Салат из свежих огурцов с маслом | D97: 60 | E97: 0.382 | F97: 6.049 | G97: 1.037 | H97: 60 | I97: 0.016 | J97: 3.822 | K97: 0 | L97: 2.695 | M97: 9.282 | N97: 16.5 | O97: 7.644 | P97: 0.273
A98: 243/2015дели | C98: Сосиски отварные | D98: 100 | E98: 12.0 | F98: 7.6 | G98: 16 | H98: 180 | I98: 0.3 | J98: 0 | K98: 0 | L98: 0.5 | M98: 33.4 | N98: 182.8 | O98: 19.78 | P98: 2.4
A99: 511/2004 сб шк | C99: Рис отварной | D99: 150 | E99: 3.7 | F99: 4.9 | G99: 28.3 | H99: 172 | I99: 0.045 | J99: 0 | K99: 39.9 | L99: 0.27 | M99: 4.95 | N99: 82.35 | O99: 27 | P99: 0.54
A100: 685/2004 сб шк | C100: Чай с сахаром | D100: 200/15 | E100: 0.2 | F100: 0 | G100: 13.7 | H100: 56 | I100: 0.008 | J100: 3.75 | K100: 0 | L100: 0.075 | M100: 9.97 | N100: 7.5 | O100: 6.5 | P100: 0.197
C101: Хлеб белый 1 сорт | D101: 30 | E101: 2.28 | F101: 0.24 | G101: 14.76 | H101: 71 | I101: 0.033 | J101: 0 | K101: 0 | L101: 0.33 | M101: 6 | N101: 19.5 | O101: 4.2 | P101: 0.33
C102: Хлеб сельский 1 сорт | D102: 20 | E102: 1.3 | F102: 0.2 | G102: 7 | H102: 35 | I102: 0.02 | J102: 0 | K102: 0 | L102: 0.2 | M102: 4.7 | N102: 21.1 | O102: 6.3 | P102: 0.52
C103: итого: | E103: =E97+E98+E99+E100+E101+E102 -> 19.83 | F103: =F97+F98+F99+F100+F101+F102 -> 18.99 | G103: 80.80 | H103: 574.00 | I103: 0.42 | J103: 7.57 | K103: 39.90 | L103: 4.07 | M103: 68.30 | N103: 329.75 | O103: 71.42 | P103: 4.26
